bitfinex-derivatives/quotes_ETHF0:USTF0_20250810
["timestamp","ask_amount","ask_price","bid_price","bid_amount"]
[1754827899863,3.7449,4186.7,4186.6,2.419]
[1754827901057,0.8387,4187.1,4186.6,6.75144397]
[1754827901264,2.7341,4186.8,4186.7,23.4107]
[1754827901659,2.7341,4186.8,4186.7,24.8702]
[1754827902062,3.1209,4186.8,4186.7,24.8702]
[1754827902359,4.22254,4186.8,4186.7,26.76424397]
[1754827902765,4.22254,4186.8,4186.7,27.17174397]
[1754827902966,4.22254,4186.8,4186.7,26.76424397]
[1754827903772,4.22254,4186.8,4186.7,27.17174397]
[1754827904062,4.22254,4186.8,4186.7,27.71884397]
[1754827904263,4.22254,4186.8,4186.7,28.33854397]
[1754827904462,3.7449,4186.8,4186.7,29.17834397]
[1754827904668,0.47763,4187.0,4186.7,28.55864397]
[1754827904870,4.22253,4187.0,4186.9,2.4059]
[1754827905070,4.22253,4187.0,4186.9,24.8409]
[1754827905266,4.22253,4187.0,4186.9,2.4059]
[1754827905464,4.22253,4187.0,4186.9,23.3896]
[1754827905670,4.22253,4187.0,4186.9,0.4075]
[1754827905869,3.7449,4186.7,4186.6,1.5743]
[1754827906066,3.7449,4186.7,4186.6,28.33154397]
[1754827906764,3.7449,4186.7,4186.6,6.73014397]
[1754827907066,3.7449,4186.7,4186.6,29.16114397]
[1754827907463,3.7449,4186.7,4186.6,4.73174397]
[1754827907664,3.7449,4186.7,4186.6,22.8375]
[1754827907969,3.7449,4186.7,4186.6,23.3846]
[1754827908171,3.7449,4186.7,4186.6,24.0043]
[1754827908670,3.7449,4186.7,4186.6,24.8359]
[1754827909066,3.7449,4186.7,4186.6,24.0043]
[1754827909460,3.7449,4186.7,4186.6,23.3846]
[1754827909667,0.47766,4186.6,4186.3,0.6197]
[1754827909867,3.7449,4185.9,4185.8,2.4141]
[1754827910064,3.7449,4185.9,4185.8,29.16534397]
[1754827912967,3.7449,4185.9,4185.8,5.89854397]
[1754827913171,3.7449,4185.7,4185.6,22.423]
[1754827913370,3.7449,4185.4,4185.3,30.1233]
[1754827913576,3.7449,4185.4,4185.3,27.70184397]
[1754827913768,3.7449,4185.4,4185.3,29.17444397]
[1754827913769,2.1928,4185.4,4185.3,29.17444397]
[1754827914078,3.1209,4185.4,4185.3,29.17444397]
[1754827914269,3.7449,4185.4,4185.3,29.17444397]
[1754827914572,2.7341,4185.4,4185.3,29.17444397]
[1754827914775,1.8954,4185.5,4185.4,2.4272]
[1754827915169,2.9062,4185.5,4185.4,2.4272]
[1754827915474,3.7449,4185.5,4185.4,2.4272]
[1754827916776,1.9437,4185.5,4185.4,6.74324397]
[1754827916966,1.9437,4185.5,4185.4,6.75144397]
[1754827917868,2.7341,4185.5,4185.4,6.75144397]
[1754827918063,0.5413,4185.5,4185.4,6.75144397]
[1754827918264,4.22268,4185.5,4185.4,5.29194397]
[1754827918565,4.22268,4185.5,4185.4,27.69584397]
[1754827919174,4.22268,4185.5,4185.4,28.31554397]
[1754827920173,4.22268,4185.5,4185.4,27.69684397]
[1754827920771,4.25559305,4185.5,4185.4,29.14814397]
[1754827921272,4.25559305,4185.5,4185.4,29.15634397]
[1754827922170,0.87161305,4185.5,4185.4,29.15634397]
[1754827922570,1.04166,4184.0,4183.9,8.04e-06]
[1754827922775,0.47812,4182.6,4182.5,0.8316]
[1754827923184,0.47815,4182.3,4182.2,0.8316]
[1754827923469,0.47815,4182.3,4181.8,23.0327]
[1754827923470,1.19533,4182.5,4181.8,1.4513]
[1754827923677,0.4782,4181.9,4181.8,3.7309]
[1754827923865,0.4782,4181.9,4181.2,1.6081]
[1754827923866,0.47827,4181.3,4181.2,1.6081]
[1754827924075,0.47827,4181.3,4181.2,3.1112]
[1754827924275,0.47827,4181.3,4181.2,3.7309]
[1754827925172,0.51118305,4181.3,4181.2,3.7309]
[1754827925378,0.70458305,4181.3,4181.2,3.255]
[1754827925575,0.77288305,4181.3,4181.2,0.8316]
[1754827927778,0.77288305,4181.3,4181.2,2.1914]
[1754827927977,0.77288305,4181.3,4181.2,3.2043]
[1754827928381,0.77288305,4181.3,4181.2,0.8316]
[1754827928674,0.65858305,4181.3,4181.2,3.8315]
[1754827928879,0.03291305,4181.3,4181.2,3.8315]
[1754827929678,0.29461305,4181.3,4181.2,3.2043]
[1754827929884,0.29461305,4181.3,4181.2,1.7823]
[1754827930270,0.29461305,4181.3,4181.2,2.6314]
[1754827930578,0.29461305,4181.3,4181.2,3.8315]
[1754827930579,0.03291305,4181.3,4181.2,3.8315]
[1754827930969,0.23791305,4181.3,4181.2,3.8315]
[1754827931173,0.29461305,4181.3,4181.2,3.8315]
[1754827931878,0.03291305,4181.3,4181.2,3.8315]
[1754827933373,0.0994,4182.1,4181.6,3.767]
[1754827933374,0.47823,4181.7,4181.6,3.767]
[1754827933780,0.47828,4181.2,4181.1,3.767]
[1754827933975,0.55388,4181.2,4181.1,3.767]
[1754827934281,0.1474,4180.7,4179.8,0.6272]
[1754827934482,0.69331,4180.1,4180.0,2.3727]
[1754827934675,0.69331,4180.1,4180.0,3.767]
[1754827934676,0.76891,4180.1,4180.0,3.767]
[1754827934873,0.82561,4180.1,4180.0,3.767]
[1754827935073,0.67821,4180.1,4180.0,3.767]
[1754827935473,0.1323,4180.5,4180.1,2.2434]
[1754827935684,0.47833,4180.8,4180.7,3.767]
[1754827935873,0.55393,4180.8,4180.7,3.767]
[1754827936277,0.81463,4180.8,4180.7,3.1398]
[1754827936487,0.81583,4180.8,4180.7,0.7671]
[1754827936873,0.47833,4180.8,4180.7,0.7671]
[1754827937178,0.72873,4180.8,4180.7,3.767]
[1754827937378,0.77453,4180.8,4180.7,3.767]
[1754827937572,0.47841,4180.1,4179.8,22.43]
[1754827937778,0.47837,4180.5,4180.4,2.1508]
[1754827937973,0.47837,4180.5,4180.4,2.9999]
[1754827938179,0.77457,4180.5,4180.4,3.1398]
[1754827938385,0.77457,4180.5,4180.4,0.7671]
[1754827938880,0.77577,4180.5,4180.4,0.7671]
[1754827939282,0.77457,4180.5,4180.4,0.7671]
[1754827939479,0.77457,4180.5,4180.4,3.1398]
[1754827939881,0.47839,4180.2,4180.0,0.6272]
[1754827940176,0.47839,4180.2,4179.3,2.3727]
[1754827940177,0.48048,4179.4,4179.3,2.3727]
[1754827940389,0.47848,4179.4,4179.3,2.9999]
[1754827940881,0.47848,4179.4,4179.3,3.767]
[1754827941085,0.47847,4179.5,4179.3,3.767]
[1754827941275,0.47843,4179.8,4179.5,0.6272]
[1754827941475,0.47843,4179.8,4178.4,22.435]
[1754827941476,0.0674,4180.1,4180.0,2.2907]
[1754827941683,0.0674,4180.1,4180.0,3.767]
[1754827941988,0.47849,4179.3,4179.0,0.8491]
[1754827942190,0.54589,4179.3,4179.2,3.767]
[1754827942379,0.47848,4179.4,4179.3,2.2434]
[1754827942583,0.47848,4179.4,4179.3,3.767]
[1754827942783,0.54588,4179.4,4179.3,3.767]
[1754827943181,0.72888,4179.4,4179.3,3.767]
[1754827943389,0.77468,4179.4,4179.3,3.767]
[1754827943588,0.77468,4179.4,4179.3,0.7671]
[1754827943891,0.77468,4179.4,4179.3,3.1398]
[1754827944591,0.77468,4179.4,4179.3,1.2778]
[1754827944887,0.77468,4179.4,4179.3,2.1269]
[1754827945487,0.77468,4179.4,4179.3,2.6998]
[1754827945991,0.77468,4179.4,4179.3,0.7671]
[1754827946192,0.77468,4179.4,4178.4,1.4763]
[1754827946193,0.0674,4179.0,4178.4,1.4763]
[1754827946392,0.54595,4178.8,4178.7,3.767]
[1754827946592,0.0674,4178.8,4178.7,3.767]
[1754827946790,0.47849,4179.3,4179.2,1.5236]
[1754827946984,0.77469,4179.3,4179.2,0.7671]
[1754827947188,0.77469,4179.3,4178.8,0.8491]
[1754827947189,0.47854,4178.9,4178.8,1.6162]
[1754827947390,0.77474,4178.9,4178.8,2.1269]
[1754827947594,0.1132,4179.6,4178.8,0.47855]
[1754827947897,0.1132,4179.6,4179.5,3.767]
[1754827947898,0.77466,4179.6,4179.5,3.767]
[1754827948297,0.77466,4179.6,4179.5,0.7671]
[1754827948493,0.48051,4179.1,4179.0,1.6162]
[1754827948693,0.77471,4179.1,4179.0,0.7671]
[1754827949091,0.77471,4179.1,4179.0,1.2778]
[1754827949299,0.47851,4179.1,4179.0,3.767]
[1754827949591,0.72891,4179.1,4179.0,3.767]
[1754827950401,0.4785,4179.2,4179.1,2.2434]
[1754827950696,0.0674,4179.7,4179.3,2.2434]
[1754827950997,0.47845,4179.7,4179.6,3.767]
[1754827951198,0.55365,4179.7,4179.6,0.7671]
[1754827951504,2.04038933,4179.7,4179.6,3.767]
[1754827951912,1.74418933,4179.7,4179.6,3.767]
[1754827952507,1.41161817,4179.7,4179.6,3.767]
[1754827952705,3.09055607,4179.7,4179.6,3.1398]
[1754827952907,1.41161817,4179.7,4179.6,3.1398]
[1754827953201,0.77465,4179.7,4179.6,3.1398]
[1754827953411,1.41161817,4179.7,4179.6,3.1398]
[1754827953605,1.41161817,4179.7,4179.6,3.767]
[1754827954008,0.63696817,4179.7,4179.6,3.767]
[1754827954303,1.26405177,4179.7,4179.6,1.5236]
[1754827954609,1.6789379,4180.3,4179.9,2.00201]
[1754827954805,2.1573079,4180.4,4180.2,1.5236]
[1754827955102,0.47835,4180.6,4180.5,2.5599]
[1754827955310,3.21535,4180.6,4180.5,3.767]
[1754827956306,3.85475,4180.6,4180.5,3.1398]
[1754827956506,2.57133,4179.8,4179.7,3.745]
[1754827956707,3.21423,4179.8,4179.7,3.745]
[1754827957108,3.21423,4179.8,4179.7,0.7994]
[1754827957410,3.21427,4179.5,4179.4,3.745]
[1754827957898,0.47862,4178.3,4178.2,3.745]
[1754827958099,0.6043,4178.6,4178.2,2.9305]
[1754827958298,2.61003,4179.0,4178.9,1.4984]
[1754827958503,3.21433,4179.0,4178.9,3.745]
[1754827958705,3.85373,4179.0,4178.9,0.7994]
[1754827958912,3.21433,4179.0,4178.9,2.2978]
[1754827959209,2.01091,4179.2,4179.1,1.4984]
[1754827959408,2.01091,4179.2,4179.1,3.745]
[1754827959608,3.21431,4179.2,4179.1,3.745]
[1754827960511,2.27010789,4179.6,4179.5,1.4984]
[1754827960711,2.7358,4179.6,4179.5,3.745]
[1754827961204,3.21422,4179.9,4179.8,3.745]
[1754827961411,2.0929,4179.9,4179.8,3.745]
[1754827961610,0.4784,4180.1,4179.9,0.7994]
[1754827961810,0.4784,4180.1,4179.5,0.47847]
[1754827961811,2.5713,4180.1,4180.0,3.745]
[1754827962012,1.4886,4180.1,4180.0,3.745]
[1754827962907,2.7358,4180.1,4180.0,3.745]
[1754827963201,0.47841,4180.0,4179.8,0.7994]
[1754827963401,0.9281,4179.9,4179.8,1.3127]
[1754827963609,1.4886,4179.9,4179.8,3.745]
[1754827963912,1.2472,4180.3,4179.4,0.47848]
[1754827964104,0.47847,4179.6,4178.3,1.19651]
[1754827964311,3.21427,4179.6,4179.5,2.2978]
[1754827964506,3.21427,4179.6,4179.5,3.1123]
[1754827964711,3.85367,4179.6,4179.5,1.3127]
[1754827965205,3.85367,4179.6,4179.5,0.7994]
[1754827965415,1.96709,4179.3,4179.2,2.9305]
[1754827965708,3.21429,4179.3,4179.2,3.745]
[1754827965915,0.47849,4179.3,4179.2,3.745]
[1754827966607,0.47848,4179.4,4179.3,2.2466]
[1754827966805,2.01088,4179.4,4179.3,3.745]
[1754827967708,2.57138,4179.4,4179.3,3.745]
[1754827968310,3.21428,4179.4,4179.3,3.745]
[1754827969216,3.21428,4179.4,4178.7,0.47855]
[1754827969217,1.96712,4179.0,4178.9,2.3129]
[1754827969417,3.21432,4179.0,4178.9,2.9456]
[1754827969915,2.7358,4179.0,4178.9,3.745]
[1754827970211,2.7358,4179.1,4179.0,3.745]
[1754827971117,3.3752,4179.1,4179.0,0.7994]
[1754827971320,1.4886,4178.8,4178.7,1.3278]
[1754827971612,0.47858,4178.5,4177.7,0.47867]
[1754827971911,2.7358,4178.3,4178.2,3.745]
[1754827972407,3.3752,4178.3,4178.2,3.1123]
[1754827972609,2.7358,4178.3,4178.2,3.1123]
[1754827972814,2.7358,4178.3,4178.2,1.8735]
[1754827973011,2.7358,4178.3,4178.2,0.7994]
[1754827973404,0.6043,4178.2,4176.9,0.7994]
[1754827973608,0.6429,4177.8,4177.4,2.52773608]
[1754827973808,0.9281,4177.5,4177.4,4.77433608]
[1754827974011,0.4067,4177.5,4177.4,4.77433608]
[1754827974318,2.7358,4177.5,4177.4,4.14163608]
[1754827974511,0.47868,4177.7,4175.2,2.14116893]
[1754827974711,0.54225,4177.1,4176.2,0.8145]
[1754827975014,0.47878,4176.8,4175.3,3.11327713]
[1754827975213,2.26768,4176.8,4176.7,3.745]
[1754827975512,1.19679,4177.4,4174.8,3.10152749]
[1754827975712,0.77727801,4177.6,4176.6,3.1842]
[1754827975713,1.7889,4176.7,4176.6,3.1842]
[1754827975911,0.47877,4176.9,4176.8,2.8074]
[1754827976111,0.9691,4177.5,4174.9,1.6139]
[1754827976307,1.26755097,4177.7,4174.0,2.14116893]
[1754827976308,0.0635,4176.7,4176.3,1.4984]
[1754827976508,28.73,4177.5,4175.0,3.18367611]
[1754827976707,0.9809,4177.2,4177.1,0.5133]
[1754827976918,1.7889,4177.2,4177.1,3.745]
[1754827977117,0.4788,4176.6,4176.5,3.745]
[1754827977507,1.0393,4176.6,4176.5,3.745]
[1754827977705,0.2627,4177.1,4176.1,1.4984]
[1754827977907,0.47877,4176.9,4176.8,3.745]
[1754827978115,1.62477,4176.9,4176.8,3.1123]
[1754827978320,2.26767,4176.9,4176.8,0.7994]
[1754827978718,2.26767,4176.9,4176.8,1.3127]
[1754827978917,2.26767,4176.9,4176.8,3.745]
[1754827979511,0.47876,4177.0,4176.8,3.745]
[1754827979711,1.19687,4177.1,4175.7,0.7994]
[1754827979919,0.7064,4177.0,4176.0,0.7994]
[1754827980214,0.17740318,4177.4,4177.3,1.4984]
[1754827980411,0.47867,4177.8,4177.5,3.745]
[1754827980614,0.47859,4178.4,4176.2,1.19711]
[1754827980914,0.47859,4178.5,4177.8,1.6139]
[1754827981110,0.47859,4178.5,4177.6,0.47868]
[1754827981317,0.47859,4178.5,4176.6,1.197]
[1754827981318,0.47862,4178.2,4178.1,2.2466]
[1754827981911,1.18502,4178.2,4178.1,2.2466]
[1754827982219,1.18502,4178.2,4178.1,0.7994]
[1754827982515,1.18502,4178.2,4178.1,1.6139]
[1754827982720,1.18502,4178.2,4178.1,2.2466]
[1754827983214,1.18502,4178.2,4178.1,1.6139]
[1754827983815,0.47862,4178.2,4178.1,2.2466]
[1754827984211,1.45899,4179.1,4177.4,0.6327]
[1754827984212,0.6429,4179.1,4177.4,0.6327]
[1754827984418,0.47861,4178.3,4177.6,0.6327]
[1754827984618,0.47862,4178.2,4177.9,1.6139]
[1754827984814,0.47862,4178.2,4178.1,2.2466]
[1754827985012,0.0635,4178.8,4178.2,2.25341552]
[1754827985215,0.7064,4179.2,4178.3,0.6327]
[1754827985415,0.7064,4179.2,4178.2,0.00681552]
[1754827985416,0.47859,4178.5,4178.2,0.00681552]
[1754827985612,0.47859,4178.5,4178.4,1.4268]
[1754827985818,1.15269,4178.5,4178.4,2.242]
[1754827986414,1.10299,4178.5,4178.2,0.00681552]
[1754827986619,0.6741,4178.4,4178.3,0.8152]
[1754827988620,0.0497,4178.4,4178.3,0.8152]
[1754827988818,0.52829,4178.5,4178.3,1.4268]
[1754827989017,0.52829,4178.5,4178.4,1.6503]
[1754827989218,1.15269,4178.5,4178.4,1.07688]
[1754827989417,1.3336,4178.4,4178.3,0.49327]
[1754827989717,2.9755,4178.3,4178.2,1.49810552]
[1754827990422,2.9755,4178.3,4178.2,1.16536552]
[1754827991424,2.9755,4178.3,4178.2,2.81566552]
[1754827991623,0.5695,4178.3,4178.2,3.40736552]
[1754827992321,1.5031,4178.3,4178.2,3.40736552]
[1754827992521,2.9773,4178.3,4178.2,3.40736552]
[1754827992921,3.7771,4178.3,4178.2,1.46942552]
[1754827993222,0.47874,4177.2,4177.1,2.9249]
[1754827993423,1.5031,4178.1,4178.0,1.4981]
[1754827993631,2.9773,4178.1,4178.0,2.9249]
[1754827993815,2.81273,4178.1,4178.0,2.9249]
[1754827994021,1.98173,4178.1,4178.0,2.9249]
[1754827994222,0.88513,4178.1,4178.0,2.9249]
[1754827994626,0.47863,4178.1,4178.0,2.9249]
[1754827995021,0.47863,4178.1,4178.0,3.7401]
[1754827995825,0.47862,4178.2,4178.1,3.7401]
[1754827996828,0.47861,4178.3,4178.1,1.4981]
[1754827997031,1.41221,4178.3,4178.2,3.7401]
[1754827997327,3.45591,4178.3,4178.2,3.7401]
[1754827997523,4.25571,4178.3,4178.2,3.7401]
[1754827998428,1.5031,4178.3,4178.2,3.7401]
[1754827999525,3.7771,4178.3,4178.2,2.3133]
[1754828001332,3.7771,4178.3,4178.2,3.7401]
[1754828001530,0.47859,4178.5,4178.2,3.7401]
[1754828001730,1.41219,4178.5,4178.4,3.7401]
[1754828002031,0.47859,4178.5,4178.4,3.7401]
[1754828003023,1.98169,4178.5,4178.4,3.7401]
[1754828003223,4.25569,4178.5,4178.4,0.5658]
[1754828003727,4.25569,4178.5,4178.4,1.9089]
[1754828003929,0.47859,4178.5,4178.4,3.7401]
[1754828004236,0.47856,4178.7,4178.6,3.7401]
[1754828004427,4.25566,4178.7,4178.6,3.7401]
[1754828005023,0.47856,4178.7,4178.6,3.7401]
[1754828005223,0.47856,4178.7,4177.4,1.19676]
[1754828005224,0.47852,4179.0,4178.9,3.7401]
[1754828005429,1.41212,4179.0,4178.9,3.7401]
[1754828005630,2.62482,4179.0,4178.9,3.7401]
[1754828005826,4.25562,4179.0,4178.9,3.7401]
[1754828010934,1.98162,4179.0,4178.9,3.7401]
[1754828011533,0.47852,4179.0,4178.9,3.7401]
[1754828012337,2.62482,4179.0,4178.9,3.7401]
[1754828012636,4.25562,4179.0,4178.9,3.7401]
[1754828013437,4.25566,4178.7,4178.6,0.5658]
[1754828013641,3.7771,4178.5,4178.4,1.4981]
[1754828013838,3.7771,4178.5,4178.2,0.5917]
[1754828013839,3.27969,4178.4,4178.3,0.5658]
[1754828014037,0.47859,4178.5,4178.4,1.4981]
[1754828014240,2.274,4178.7,4177.1,1.19685]
[1754828014439,4.25573,4178.1,4178.0,1.0937]
[1754828014632,4.25573,4178.1,4178.0,2.9249]
[1754828014839,0.47867,4177.8,4177.7,2.0898]
[1754828015034,3.45597,4177.8,4177.7,3.7401]
[1754828015229,4.25577,4177.8,4177.7,3.7401]
[1754828015439,0.47865,4177.9,4177.7,3.7401]
[1754828015634,2.6816,4178.2,4178.1,0.9743]
[1754828015943,2.2851,4178.7,4178.2,0.8397]
[1754828016239,2.2851,4178.7,4178.0,0.47863]
[1754828016240,4.23956,4178.7,4178.6,3.8427]
[1754828016836,3.43416,4178.7,4178.6,3.8427]
[1754828017542,4.23956,4178.7,4178.6,3.8427]
[1754828017840,0.17802779,4178.9,4178.8,3.8427]
[1754828018135,1.4759,4178.9,4178.8,1.541]
[1754828018338,2.9556,4178.9,4178.8,1.541]
[1754828018537,1.4759,4178.9,4178.8,1.541]
[1754828018838,1.95442,4179.1,4179.0,1.541]
[1754828019042,4.23952,4179.1,4179.0,3.8427]
[1754828019234,4.23952,4179.1,4179.0,2.3807]
[1754828019435,4.23952,4179.1,4179.0,1.9681]
[1754828019637,1.95445,4178.8,4178.7,3.4301]
[1754828019836,4.23955,4178.8,4178.7,3.4301]
[1754828020043,4.23955,4178.8,4178.7,1.9681]
[1754828020535,4.23955,4178.8,4178.7,2.3807]
[1754828020735,1.95445,4178.8,4178.7,3.8427]
[1754828020935,1.4759,4178.8,4178.7,3.8427]
[1754828021139,0.3965,4178.8,4178.7,3.8427]
[1754828021438,1.4759,4178.8,4178.7,1.1284]
[1754828021741,3.761,4178.8,4178.7,3.8427]
[1754828022136,3.43416,4178.7,4178.6,0.5667]
[1754828022335,4.23956,4178.7,4178.6,1.9681]
[1754828022542,4.23956,4178.7,4178.6,3.8427]
[1754828023340,0.47861,4178.3,4178.1,1.541]
[1754828023640,3.43421,4178.3,4178.2,3.8427]
[1754828024232,0.4786,4178.4,4178.2,3.8427]
[1754828024433,0.4786,4178.4,4178.3,2.3017]
[1754828024632,3.4342,4178.4,4178.3,3.8427]
[1754828025639,0.4786,4178.4,4178.3,3.8427]
[1754828026042,0.47857,4178.6,4178.4,2.01959]
[1754828026244,0.47857,4178.6,4178.5,3.8427]
[1754828026437,0.8054,4179.1,4178.5,3.8427]
[1754828026438,0.47856,4178.7,4178.5,1.541]
[1754828026639,0.47856,4178.7,4177.6,3.0252]
[1754828026640,2.19591,4179.1,4179.0,1.541]
[1754828026839,1.39051,4179.1,4179.0,3.8427]
[1754828027242,2.58171,4179.1,4179.0,3.8427]
[1754828027442,0.4785,4179.2,4179.0,1.541]
[1754828027648,0.47845,4179.7,4179.6,1.541]
[1754828027944,0.47845,4179.7,4179.6,3.8427]
[1754828028151,0.47837,4180.3,4180.2,3.8427]
[1754828028446,4.23937,4180.3,4180.2,3.8427]
[1754828028648,3.761,4180.3,4180.2,3.8427]
[1754828028843,2.9556,4180.3,4180.2,3.8427]
[1754828029040,0.8054,4180.6,4180.2,3.8427]
[1754828029041,1.28374,4180.6,4180.2,3.8427]
[1754828029247,0.47834,4180.6,4180.5,3.003]
[1754828029446,4.23934,4180.6,4180.5,3.8427]
[1754828032348,2.7372,4180.2,4180.1,2.8026]
[1754828032551,3.761,4180.2,4180.1,3.8427]
[1754828033340,0.3965,4180.2,4180.1,3.8427]
[1754828033537,4.23936,4180.5,4180.4,1.541]
[1754828033741,0.47833,4180.7,4180.5,2.3017]
[1754828033947,3.43393,4180.7,4180.6,3.8427]
[1754828034540,4.23933,4180.7,4180.6,3.8427]
[1754828034744,4.23933,4180.7,4179.5,1.4672]
[1754828034745,0.47844,4179.8,4179.5,1.4672]
[1754828034942,1.19588,4180.5,4179.4,3.8427]
[1754828034943,3.761,4179.5,4179.4,3.8427]
[1754828035839,2.80675,4179.7,4179.6,2.3755]
[1754828036044,3.43405,4179.7,4179.6,3.8427]
[1754828036444,1.95433,4179.9,4179.8,1.541]
[1754828036646,3.43403,4179.9,4179.8,2.3807]
[1754828036848,3.43403,4179.9,4179.8,3.2152]
[1754828037052,4.23943,4179.9,4179.8,2.3807]
[1754828037442,4.23943,4179.9,4179.8,1.1284]
[1754828037848,4.23943,4179.9,4179.8,1.9681]
[1754828038051,4.23943,4179.9,4179.8,2.3807]
[1754828038245,4.23943,4179.9,4179.8,3.8427]
[1754828038849,4.23943,4179.9,4179.8,2.3807]
[1754828039046,4.23943,4179.9,4179.8,1.1284]
[1754828039550,0.99395,4179.7,4179.6,1.4064]
[1754828039749,1.95435,4179.7,4179.6,1.4064]
[1754828039949,1.95435,4179.7,4179.6,1.9681]
[1754828040150,4.23945,4179.7,4179.6,2.8026]
[1754828040446,3.761,4179.7,4179.6,2.8026]
[1754828041047,3.761,4179.7,4179.6,1.9681]
[1754828041846,3.761,4179.7,4179.6,3.4301]
[1754828042050,3.761,4179.7,4179.6,3.8427]
[1754828042949,3.761,4179.7,4179.6,0.5667]
[1754828044244,3.761,4179.7,4179.6,1.1284]
[1754828044946,3.761,4179.7,4179.6,3.8427]
[1754828047348,0.47843,4179.9,4179.8,1.4681]
[1754828047547,0.47843,4179.9,4179.8,3.6426]
[1754828047751,1.93313,4179.9,4179.8,3.6426]
[1754828048050,4.20323,4179.9,4179.8,3.6426]
[1754828050547,3.39803,4179.9,4179.8,3.6426]
[1754828050748,4.20323,4179.9,4179.8,3.6426]
[1754828054551,0.47851,4179.2,4179.0,3.185]
[1754828054753,4.20334,4178.8,4178.7,3.6426]
[1754828055053,0.47854,4178.8,4178.7,3.6426]
[1754828055457,0.18683895,4179.7,4178.8,1.5909]
[1754828055648,1.93314,4179.7,4179.6,3.6426]
[1754828055951,0.47854,4178.9,4178.8,2.0517]
[1754828056347,0.47854,4178.9,4178.8,3.6426]
[1754828056651,0.47853,4179.0,4178.9,2.1745]
[1754828056851,0.47853,4179.0,4178.9,3.6426]
[1754828058757,0.87945,4178.8,4178.7,3.6426]
[1754828058948,0.87945,4178.8,4178.7,5.557]
[1754828059147,3.39815,4178.8,4178.7,5.557]
[1754828059350,4.20335,4178.8,4178.7,5.557]
[1754828059957,4.20335,4178.8,4178.7,1.9144]
[1754828060152,4.20335,4178.8,4178.7,3.3825]
[1754828060351,4.20335,4178.8,4178.7,2.9703]
[1754828060550,4.20335,4178.8,4178.7,5.557]
[1754828060948,4.20335,4178.8,4178.7,3.2275]
[1754828061153,4.20339,4178.4,4178.3,3.6426]
[1754828062552,0.47859,4178.5,4178.3,3.6426]
[1754828062752,0.47859,4178.5,4178.4,3.6426]
[1754828063848,0.47857,4178.7,4178.6,3.6426]
[1754828065053,1.41077,4178.7,4178.6,3.6426]
[1754828065454,1.83547,4178.7,4178.6,3.6426]
[1754828065655,3.39807,4179.4,4179.3,1.0559]
[1754828065855,4.20332,4179.0,4178.9,3.6426]
[1754828066057,1.41072,4179.0,4178.9,3.6426]
[1754828066456,3.39812,4179.0,4178.9,3.6426]
[1754828066652,4.20332,4179.0,4178.9,3.6426]
[1754828066852,1.4547,4178.7,4178.6,3.059]
[1754828067058,0.18606043,4179.3,4178.8,1.4681]
[1754828067059,0.47853,4178.9,4178.8,1.4681]
[1754828067362,0.47853,4178.9,4178.8,3.6426]
[1754828068161,0.47849,4179.3,4179.1,3.6426]
[1754828068359,0.47849,4179.3,4179.2,3.6426]
[1754828068862,0.47847,4179.5,4179.2,3.6426]
[1754828069063,0.47847,4179.5,4179.4,3.6426]
[1754828069256,0.47846,4179.6,4179.4,1.4681]
[1754828069451,0.47846,4179.6,4179.5,3.6426]
[1754828071355,2.2701,4180.4,4179.7,2.1745]
[1754828071563,0.47843,4179.8,4179.7,3.059]
[1754828072264,0.1860977,4180.5,4178.4,1.19646]
[1754828072265,0.47842,4179.9,4179.8,3.6426]
[1754828073769,0.87932,4179.9,4179.8,3.6426]
[1754828073968,2.2891,4179.9,4179.2,1.4059]
[1754828074272,0.47842,4179.9,4179.8,3.6426]
[1754828074672,4.20322,4179.9,4179.8,3.6426]
[1754828076268,4.06039,4179.3,4179.2,3.6342]
[1754828076765,1.91847,4179.5,4179.4,3.6342]
[1754828077164,0.47846,4179.6,4179.5,3.6342]
[1754828077362,0.47845,4179.7,4179.5,2.8088]
[1754828077570,0.9176,4179.7,4179.6,3.6342]
[1754828078267,0.47844,4179.8,4179.7,3.6342]
[1754828078471,0.47842,4179.9,4179.8,3.6342]
[1754828078668,2.1419,4180.3,4179.0,1.19629]
[1754828078669,0.47837,4180.3,4180.2,1.4538]
[1754828078869,0.47837,4180.3,4180.2,3.6342]
[1754828079460,0.47837,4180.4,4180.2,3.6342]
[1754828079665,0.47837,4180.4,4180.2,1.4538]
[1754828079969,1.39597,4180.4,4180.3,3.6342]
[1754828080670,2.49117,4180.4,4180.3,3.6342]
[1754828080873,3.24547,4180.4,4180.3,3.6342]
[1754828081466,1.19582,4180.8,4179.0,28.719]
[1754828081667,3.5819,4179.9,4179.8,3.6342]
[1754828081869,3.5819,4179.9,4179.8,0.5377]
[1754828083166,0.9176,4179.6,4179.5,1.2973]
[1754828083366,0.9176,4179.6,4179.5,2.30966]
[1754828083367,3.5819,4179.6,4179.5,2.30966]
[1754828083574,3.5819,4179.9,4179.8,3.6342]
[1754828083870,2.8276,4180.2,4180.1,3.6342]
[1754828084173,2.0128,4180.2,4180.1,3.6342]
[1754828084373,1.4904,4180.2,4180.1,3.6342]
[1754828084574,0.9176,4180.5,4180.4,2.8746]
[1754828084770,2.1419,4181.5,4181.0,0.47829]
[1754828084966,0.9176,4181.1,4181.0,4.11249]
[1754828085371,1.7324,4181.3,4181.2,1.4538]